[Event "3rd Gujarat GM Open 2022"]
[Site "Ahmedabad"]
[Date "2022.04.04"]
[Round "7.5"]
[White "Stany, G.A."]
[Black "Wagh Suyog"]
[Result "1-0"]
[ECO "B62"]
[WhiteElo "2517"]
[BlackElo "2232"]
[Annotator "ChessBase"]
[PlyCount "151"]
[EventDate "2022.03.31"]
[EventType "swiss"]
[EventCountry "IND"]
[SourceTitle "playchess.com"]
[Source "ChessBase"]
[SourceQuality "1"]
[TimeControl "5400+30"]

1. e4 {[%emt 1:31:00]} c5 {[%emt 0:00:46]} 2. Nf3 {[%emt 0:00:00]} d6 {[%emt 0:00:05]} 3. d4 {[%emt 0:00:00]} cxd4 {[%emt 0:01:36]} 4. Nxd4 {[%emt 0:00:00]} Nf6 {[%emt 0:00:03]} 5. Nc3 {[%emt 0:00:00]} Nc6 {[%emt 0:00:04]} 6. Bg5 {[%emt 0:00:00]} e6 {[%emt 0:00:10]} 7. Qd3 {[%emt 0:00:00]} Be7 {[%emt 0:31:14]} 8. O-O-O {[%emt 0:00:00]} Qb6 {[%emt 0:13:35]} 9. Be3 {[%emt 0:00:00]} Ng4 {[%emt 0:30:32]} 10. Nxc6 {[%emt 0:00:00]} Qxc6 {[%emt 0:02:11]} 11. Bf4 {[%emt 0:00:00]} O-O {[%emt 0:03:30]} 12. Bg3 {[%emt 0:00:00]} a6 {[%emt 0:01:22]} 13. f4 {[%emt 0:00:00]} Qc5 {[%emt 0:02:46]} 14. Rd2 {[%emt 0:00:00]} b5 {[%emt 0:01:57]} 15. Qf3 {[%emt 0:00:00]} b4 {[%emt 0:02:10]} 16. Na4 {[%emt 0:00:00]} Qa5 {[%emt 0:02:05]} 17. Qxg4 {[%emt 0:00:00]} Qxa4 {[%emt 0:00:09]} 18. Kb1 {[%emt 0:00:00]} Bd7 {[%emt 0:01:55]} 19. Bd3 {[%emt 0:00:00]} Bb5 {[%emt 0:00:23]} 20. f5 {[%emt 0:00:00]} Bxd3 {[%emt 0:01:15]} 21. Rxd3 {[%emt 0:00:00]} Rac8 {[%emt 0:00:27]} 22. Rc1 {[%emt 0:00:00]} exf5 {[%emt 0:00:55]} 23. exf5 {[%emt 0:00:00]} Rfe8 {[%emt 0:00:29]} 24. Bf2 {[%emt 0:00:00]} Bf6 {[%emt 0:01:57]} 25. Bd4 {[%emt 0:00:00]} Re1 {[%emt 0:00:50]} 26. b3 {[%emt 0:01:53]} Rxc1+ {[%emt 0:00:16]} 27. Kxc1 {[%emt 0:00:04]} Qxa2 {[%emt 0:00:05]} 28. Rd2 {[%emt 0:00:03]} Bxd4 {[%emt 0:01:06]} 29. Qxd4 {[%emt 0:00:09]} Qxb3 {[%emt 0:00:32]} 30. Qxd6 {[%emt 0:00:30]} Qe3 {[%emt 0:00:33]} 31. Qxa6 {[%emt 0:03:17]} Rd8 {[%emt 0:00:31]} 32. Qe2 {[%emt 0:00:29]} Qa3+ {[%emt 0:00:24]} 33. Kb1 {[%emt 0:00:04]} Ra8 {[%emt 0:00:30]} 34. Qe5 {[%emt 0:00:03]} b3 {[%emt 0:00:30]} 35. c4 {[%emt 0:04:43]} Qa4 {[%emt 0:00:33]} 36. Qc3 {[%emt 0:02:27]} Re8 {[%emt 0:00:32]} 37. Rb2 {[%emt 0:00:56]} Rb8 {[%emt 0:00:22]} 38. Rd2 {[%emt 0:01:34]} h6 {[%emt 0:00:36]} 39. f6 {[%emt 0:00:16]} Re8 {[%emt 0:00:26]} 40. Rb2 {[%emt 0:00:30]} Ra8 {[%emt 0:00:31]} 41. Qxb3 {[%emt 0:00:43]} Qa1+ {[%emt 0:00:12]} 42. Kc2 {[%emt 0:00:03]} Rd8 {[%emt 0:00:31]} 43. Qg3 {[%emt 0:00:56]} Qd1+ {[%emt 0:00:35]} 44. Kc3 {[%emt 0:00:02]} Qd4+ {[%emt 0:00:26]} 45. Kb3 {[%emt 0:00:45]} Qb6+ {[%emt 0:00:32]} 46. Kc2 {[%emt 0:00:16]} Qxf6 {[%emt 0:01:21]} 47. Rb8 {[%emt 0:00:07]} Qf5+ {[%emt 0:00:00]} 48. Kc3 {[%emt 0:01:04]} Qa5+ {[%emt 0:00:27]} 49. Kb3 {[%emt 0:00:11]} g5 {[%emt 0:00:23]} 50. c5 {[%emt 0:00:29]} Kh7 {[%emt 0:00:37]} 51. Rxd8 {[%emt 0:00:15]} Qxd8 {[%emt 0:00:02]} 52. Qd6 {[%emt 0:00:25]} Qa5 {[%emt 0:01:00]} 53. Qd3+ {[%emt 0:02:08]} Kg8 {[%emt 0:00:03]} 54. Qc4 {[%emt 0:00:04]} Qc7 {[%emt 0:00:48]} 55. c6 {[%emt 0:00:42]} Qb6+ {[%emt 0:00:23]} 56. Ka4 {[%emt 0:00:10]} Qa7+ {[%emt 0:00:17]} 57. Kb5 {[%emt 0:00:42]} Qb8+ {[%emt 0:00:16]} 58. Ka5 {[%emt 0:00:33]} Qc7+ {[%emt 0:00:57]} 59. Ka6 {[%emt 0:00:07]} Qc8+ {[%emt 0:00:06]} 60. Kb6 {[%emt 0:00:05]} Qb8+ {[%emt 0:00:05]} 61. Kc5 {[%emt 0:00:05]} Qf8+ {[%emt 0:00:53]} 62. Kd5 {[%emt 0:00:45]} Qd8+ {[%emt 0:00:06]} 63. Ke4 {[%emt 0:00:41]} Qe7+ {[%emt 0:01:07]} 64. Kf5 {[%emt 0:01:32]} Qc7 {[%emt 0:00:07]} 65. g3 {[%emt 0:00:05]} Qc8+ {[%emt 0:00:32]} 66. Ke4 {[%emt 0:00:42]} Qc7 {[%emt 0:01:18]} 67. Qc5 {[%emt 0:00:38]} Kh7 {[%emt 0:00:27]} 68. Qf5+ {[%emt 0:00:08]} Kg8 {[%emt 0:00:04]} 69. Qd7 {[%emt 0:00:12]} Qb6 {[%emt 0:00:34]} 70. c7 {[%emt 0:01:17]} Qb1+ {[%emt 0:00:31]} 71. Ke5 {[%emt 0:00:45]} Qb2+ {[%emt 0:00:52]} 72. Qd4 {[%emt 0:00:50]} Qe2+ {[%emt 0:00:29]} 73. Kd6 {[%emt 0:00:06]} Qa6+ {[%emt 0:00:32]} 74. Ke7 {[%emt 0:00:53]} Qb7 {[%emt 0:00:32]} 75. Kd8 {[%emt 0:00:09]} Kf8 {[%emt 0:00:31]} 76. Qh8# {[%emt 0:00:43]} 1-0

[Event "3rd Gujarat GM Open 2022"]
[Site "Ahmedabad"]
[Date "2022.04.04"]
[Round "7.7"]
[White "Mirzoev, Azer"]
[Black "Daakshin Arun"]
[Result "1-0"]
[ECO "B07"]
[WhiteElo "2468"]
[BlackElo "2173"]
[Annotator "RC"]
[PlyCount "91"]
[EventDate "2022.03.31"]
[EventType "swiss"]
[EventCountry "IND"]
[SourceTitle "playchess.com"]
[Source "ChessBase"]
[SourceQuality "1"]
[TimeControl "5400+30"]

1. d4 {[%emt 0:04:38]} Nf6 {[%emt 0:00:06]} 2. Nf3 {[%emt 0:00:05]} g6 {[%emt 0:00:05]} 3. Nbd2 {[%emt 0:00:09]} Bg7 {[%emt 0:00:21]} 4. e4 {[%emt 0:00:07]} d6 {[%emt 0:00:26]} 5. c3 {[%emt 0:00:11]} Nbd7 {[%emt 0:00:32]} 6. Bd3 {[%emt 0:00:10]} e5 {[%emt 0:00:06]} 7. O-O {[%emt 0:00:09]} O-O {[%emt 0:00:08]} 8. Re1 {[%emt 0:00:11]} c6 {[%emt 0:00:30]} 9. h3 {[%emt 0:00:52]} Qc7 {[%emt 0:00:59]} 10. a4 {[%emt 0:01:47]} a5 {[%emt 0:01:11]} 11. Nf1 {[%emt 0:02:08]} Re8 {[%emt 0:01:57]} 12. Ng3 {[%emt 0:00:07]} b6 {[%emt 0:00:41]} 13. Bg5 {[%emt 0:04:10]} Bb7 {[%emt 0:00:37]} 14. Qd2 {[%emt 0:07:35]} Rad8 {[%emt 0:02:34]} 15. Rad1 {[%emt 0:01:54]} c5 {[%emt 0:07:21]} 16. d5 {[%emt 0:17:19]} c4 {[%emt 0:00:31]} 17. Bc2 {[%emt 0:00:06]} Rc8 {[%emt 0:01:39]} 18. Rf1 {[%emt 0:07:47]} Nc5 {[%emt 0:01:19]} 19. Nh2 {[%emt 0:04:05]} Ncd7 {[%emt 0:04:44]} 20. Kh1 {[%emt 0:02:48]} Kh8 {[%emt 0:01:19]} 21. f4 {[%emt 0:01:16]} exf4 {[%emt 0:00:45]} 22. Rxf4 {[%emt 0:06:28]} Ng8 {[%emt 0:04:26]} 23. Rxf7 {[%emt 0:02:08]} Rf8 {[%emt 0:00:12]} 24. Rdf1 {[%emt 0:02:05]} Rxf7 {[%emt 0:00:09]} 25. Rxf7 {[%emt 0:00:12]} Rf8 {[%emt 0:00:58]} 26. Qf2 {[%emt 0:01:59]} Qc8 {[%emt 0:01:13]} 27. Ng4 {[%emt 0:05:55]} Qe8 {[%emt 0:01:58]} 28. Rxf8 {[%emt 0:00:14]} Qxf8 {[%emt 0:00:04]} 29. Qxf8 {[%emt 0:00:16]} Bxf8 {[%emt 0:00:16]} 30. Ne2 {[%emt 0:01:23]} h6 {[%emt 0:01:22]} 31. Bf4 {[%emt 0:02:15]} g5 {[%emt 0:00:53]} 32. Be3 {[%emt 0:00:52]} Kg7 {[%emt 0:01:14]} 33. Nd4 {[%emt 0:00:24]} Kf7 {[%emt 0:00:47]} 34. Nf5 {[%emt 0:01:15]} Bc8 {[%emt 0:01:05]} 35. Bd4 {[%emt 0:01:11]} Nc5 {[%emt 0:00:44]} 36. Nge3 {[%emt 0:00:27]} Ba6 {[%emt 0:00:38]} 37. Kg1 {[%emt 0:04:32]} Nf6 {[%emt 0:01:47]} 38. Bxf6 {[%emt 0:06:13]} Kxf6 {[%emt 0:00:04]} 39. Ng4+ {[%emt 0:00:04]} Kg6 {[%emt 0:00:03]} 40. Nxd6 {[%emt 0:01:38]} Nd3 {[%emt 0:00:46]} 41. e5 {[%emt 0:01:15]} h5 {[%emt 0:01:00]} 42. Ne3 {[%emt 0:00:34]} Bxd6 {[%emt 0:00:23]} 43. exd6 {[%emt 0:00:12]} Kf6 {[%emt 0:00:03]} 44. Bd1 {[%emt 0:06:24]} Nxb2 {[%emt 0:01:09]} 45. Bxh5 {[%emt 0:00:10]} Nxa4 {[%emt 0:00:06]} 46. Ng4+ {[%emt 0:00:23]} 1-0

[Event "3rd Gujarat GM Open 2022"]
[Site "Ahmedabad"]
[Date "2022.04.04"]
[Round "7.8"]
[White "Krishna C R G"]
[Black "Weerawardane, Romesh"]
[Result "1-0"]
[ECO "E11"]
[WhiteElo "2466"]
[BlackElo "2005"]
[Annotator "RC"]
[PlyCount "67"]
[EventDate "2022.03.31"]
[EventType "swiss"]
[EventCountry "IND"]
[SourceTitle "playchess.com"]
[Source "ChessBase"]
[SourceQuality "1"]
[TimeControl "5400+30"]

1. d4 {[%emt 0:02:06]} Nf6 {[%emt 0:00:01]} 2. Nf3 {[%emt 0:00:16]} e6 {[%emt 0:00:34]} 3. c4 {[%emt 0:00:38]} Bb4+ {[%emt 0:00:21]} 4. Bd2 {[%emt 0:00:02]} Qe7 {[%emt 0:00:18]} 5. g3 {[%emt 0:00:22]} O-O {[%emt 0:01:07]} 6. Bg2 {[%emt 0:00:02]} Nc6 {[%emt 0:01:06]} 7. O-O {[%emt 0:00:08]} Bxd2 {[%emt 0:00:20]} 8. Nbxd2 {[%emt 0:00:03]} d6 {[%emt 0:00:11]} 9. e4 {[%emt 0:00:05]} e5 {[%emt 0:00:09]} 10. d5 {[%emt 0:00:02]} Nb8 {[%emt 0:00:10]} 11. Ne1 {[%emt 0:05:33]} a5 {[%emt 0:00:08]} 12. Nd3 {[%emt 0:00:45]} Na6 {[%emt 0:00:06]} 13. f4 {[%emt 0:01:28]} exf4 {[%emt 0:02:28]} 14. gxf4 {[%emt 0:01:23]} Rb8 {[%emt 0:06:43]} 15. Qf3 {[%emt 0:08:04]} Nd7 {[%emt 0:07:11]} 16. Nb3 {[%emt 0:21:47]} a4 {[%emt 0:06:31]} 17. Nd4 {[%emt 0:00:03]} Qf6 {[%emt 0:00:13]} 18. Qe3 {[%emt 0:00:08]} Ndc5 {[%emt 0:07:20]} 19. Nf2 {[%emt 0:01:59]} Re8 {[%emt 0:02:05]} 20. Rfe1 {[%emt 0:01:06]} Qg6 {[%emt 0:12:48]} 21. Kh1 {[%emt 0:04:15]} c6 {[%emt 0:10:26]} 22. Qd2 {[%emt 0:10:40]} cxd5 {[%emt 0:01:42]} 23. cxd5 {[%emt 0:00:20]} Qf6 {[%emt 0:03:24]} 24. Re2 {[%emt 0:07:08]} Bd7 {[%emt 0:01:11]} 25. Rae1 {[%emt 0:00:35]} Nc7 {[%emt 0:00:13]} 26. e5 {[%emt 0:10:16]} Qh6 {[%emt 0:02:52]} 27. b4 {[%emt 0:02:22]} axb3 {[%emt 0:01:19]} 28. axb3 {[%emt 0:00:02]} Nb5 {[%emt 0:08:39]} 29. b4 {[%emt 0:02:28]} dxe5 {[%emt 0:11:13]} 30. Nxb5 {[%emt 0:01:03]} Bxb5 {[%emt 0:00:26]} 31. bxc5 {[%emt 0:00:06]} Bxe2 {[%emt 0:00:24]} 32. Qxe2 {[%emt 0:01:05]} Qxf4 {[%emt 0:00:11]} 33. Ne4 {[%emt 0:04:00]} Qh4 {[%emt 0:03:22]} 34. Nd6 {[%emt 0:01:28]} 1-0

[Event "3rd Gujarat GM Open 2022"]
[Site "Ahmedabad"]
[Date "2022.04.04"]
[Round "7.10"]
[White "Ayush Sharma"]
[Black "Abdisalimov, Abdimalik"]
[Result "0-1"]
[ECO "B90"]
[WhiteElo "2302"]
[BlackElo "2435"]
[Annotator "RC"]
[PlyCount "92"]
[EventDate "2022.03.31"]
[EventType "swiss"]
[EventCountry "IND"]
[SourceTitle "playchess.com"]
[Source "ChessBase"]
[SourceQuality "1"]
[TimeControl "5400+30"]

1. e4 {[%emt 0:07:35]} c5 {[%emt 0:00:04]} 2. Nf3 {[%emt 0:00:41]} d6 {[%emt 0:00:08]} 3. d4 {[%emt 0:00:23]} cxd4 {[%emt 0:00:05]} 4. Nxd4 {[%emt 0:00:05]} Nf6 {[%emt 0:00:04]} 5. Nc3 {[%emt 0:00:05]} a6 {[%emt 0:00:04]} 6. h3 {[%emt 0:00:04]} Nc6 {[%emt 0:01:21]} 7. g4 {[%emt 0:00:33]} Qb6 {[%emt 0:00:07]} 8. Nde2 {[%emt 0:01:34]} e6 {[%emt 0:00:15]} 9. Bg2 {[%emt 0:00:50]} Be7 {[%emt 0:01:16]} 10. O-O {[%emt 0:00:57]} h6 {[%emt 0:16:32]} 11. Be3 {[%emt 0:01:01]} Qc7 {[%emt 0:07:21]} 12. f4 {[%emt 0:13:11]} b5 {[%emt 0:02:36]} 13. Nd4 {[%emt 0:11:11]} Nxd4 {[%emt 0:18:20]} 14. Qxd4 {[%emt 0:06:50]} Nd7 {[%emt 0:02:05]} 15. a4 {[%emt 0:11:14]} b4 {[%emt 0:03:40]} 16. Qxb4 {[%emt 0:00:03]} Rb8 {[%emt 0:00:04]} 17. Qa3 {[%emt 0:00:29]} Nb6 {[%emt 0:02:51]} 18. Bd4 {[%emt 0:03:28]} Nc4 {[%emt 0:01:06]} 19. Qa2 {[%emt 0:00:01]} Bf6 {[%emt 0:02:08]} 20. Bxf6 {[%emt 0:03:27]} Qc5+ {[%emt 0:00:05]} 21. Rf2 {[%emt 0:07:57]} Rxb2 {[%emt 0:00:29]} 22. Qxb2 {[%emt 0:02:58]} Nxb2 {[%emt 0:00:21]} 23. Bxg7 {[%emt 0:00:02]} Rg8 {[%emt 0:01:31]} 24. Bf6 {[%emt 0:00:01]} Nc4 {[%emt 0:14:18]} 25. e5 {[%emt 0:04:22]} d5 {[%emt 0:01:50]} 26. Rd1 {[%emt 0:00:02]} Bb7 {[%emt 0:01:07]} 27. Ne4 {[%emt 0:03:44]} Qc7 {[%emt 0:00:21]} 28. Bf1 {[%emt 0:00:01]} Ne3 {[%emt 0:01:31]} 29. Nd6+ {[%emt 0:02:42]} Kd7 {[%emt 0:00:01]} 30. Rb1 {[%emt 0:05:11]} Rb8 {[%emt 0:00:01]} 31. Nxf7 {[%emt 0:03:22]} Ba8 {[%emt 0:02:42]} 32. Rxb8 {[%emt 0:02:20]} Qxb8 {[%emt 0:00:03]} 33. f5 {[%emt 0:02:21]} Nxf1 {[%emt 0:01:41]} 34. fxe6+ {[%emt 0:01:14]} Kxe6 {[%emt 0:00:01]} 35. Nd8+ {[%emt 0:00:04]} Kd7 {[%emt 0:00:06]} 36. Rxf1 {[%emt 0:00:26]} d4 {[%emt 0:00:16]} 37. e6+ {[%emt 0:04:09]} Ke8 {[%emt 0:00:01]} 38. Bh4 {[%emt 0:00:22]} Qb6 {[%emt 0:00:29]} 39. e7 {[%emt 0:01:22]} d3+ {[%emt 0:00:04]} 40. Kh2 {[%emt 0:01:44]} Qd6+ {[%emt 0:00:02]} 41. Kg1 {[%emt 0:00:28]} Qd4+ {[%emt 0:00:09]} 42. Kh2 {[%emt 0:01:39]} Qe5+ {[%emt 0:00:07]} 43. Kg1 {[%emt 0:00:12]} Qe3+ {[%emt 0:00:03]} 44. Kh2 {[%emt 0:00:05]} Qe2+ {[%emt 0:00:05]} 45. Rf2 {[%emt 0:00:01]} Qxf2+ {[%emt 0:00:10]} 46. Bxf2 {[%emt 0:00:01]} d2 {[%emt 0:00:05]} 0-1

[Event "3rd Gujarat GM Open 2022"]
[Site "Ahmedabad"]
[Date "2022.04.04"]
[Round "7.12"]
[White "Audi Ameya"]
[Black "Krishnan Ritvik"]
[Result "1-0"]
[ECO "B67"]
[WhiteElo "2418"]
[BlackElo "1761"]
[Annotator "RC"]
[PlyCount "59"]
[EventDate "2022.03.31"]
[EventType "swiss"]
[EventCountry "IND"]
[SourceTitle "playchess.com"]
[Source "ChessBase"]
[SourceQuality "1"]
[TimeControl "5400+30"]

1. e4 {[%emt 1:31:00]} c5 {[%emt 1:31:00]} 2. Nf3 {[%emt 0:00:30]} d6 {[%emt 0:00:30]} 3. d4 {[%emt 0:00:30]} cxd4 {[%emt 0:00:30]} 4. Nxd4 {[%emt 0:00:30]} Nf6 {[%emt 0:00:30]} 5. Nc3 {[%emt 0:00:30]} Nc6 {[%emt 0:00:30]} 6. Bg5 {[%emt 0:00:30]} e6 {[%emt 0:00:30]} 7. Qd2 {[%emt 0:00:30]} a6 {[%emt 0:00:30]} 8. O-O-O {[%emt 0:00:30]} Bd7 {[%emt 0:00:30]} 9. f3 {[%emt 0:00:30]} Be7 {[%emt 0:00:30]} 10. h4 {[%emt 0:00:30]} h6 {[%emt 0:00:30]} 11. Be3 {[%emt 0:00:30]} h5 {[%emt 0:00:30]} 12. Nxc6 {[%emt 0:00:30]} Bxc6 {[%emt 0:00:30]} 13. Bg5 {[%emt 0:00:30]} Qc7 {[%emt 0:00:30]} 14. Bc4 {[%emt 0:00:30]} b5 {[%emt 0:00:30]} 15. Bd3 {[%emt 0:00:30]} b4 {[%emt 0:00:30]} 16. Ne2 {[%emt 0:00:30]} d5 {[%emt 0:00:30]} 17. e5 {[%emt 0:00:30]} Ng8 {[%emt 0:00:30]} 18. Nd4 {[%emt 0:00:30]} a5 {[%emt 0:00:30]} 19. f4 {[%emt 0:00:30]} g6 {[%emt 0:00:30]} 20. Kb1 {[%emt 0:00:30]} Bc5 {[%emt 0:00:30]} 21. c3 {[%emt 0:00:30]} Qb6 {[%emt 0:00:30]} 22. Nxc6 {[%emt 0:00:30]} Qxc6 {[%emt 0:00:30]} 23. Qe2 {[%emt 0:00:30]} Rb8 {[%emt 0:00:30]} 24. cxb4 {[%emt 0:00:30]} Bxb4 {[%emt 0:00:30]} 25. Rc1 {[%emt 0:00:30]} Qb6 {[%emt 0:00:30]} 26. Bb5+ {[%emt 0:00:30]} Qxb5 {[%emt 0:00:30]} 27. Rc8+ {[%emt 0:00:30]} Kd7 {[%emt 0:00:30]} 28. Rhc1 {[%emt 0:00:30]} Bd6 {[%emt 0:00:30]} 29. Qxb5+ {[%emt 0:00:30]} Rxb5 {[%emt 0:00:30]} 30. Rd8# {[%emt 0:00:30]} 1-0

[Event "3rd Gujarat GM Open 2022"]
[Site "Ahmedabad"]
[Date "2022.04.04"]
[Round "7.15"]
[White "De Silva, L M S T"]
[Black "Huerga Leache, Mikel"]
[Result "1/2-1/2"]
[ECO "B30"]
[WhiteElo "2220"]
[BlackElo "2470"]
[Annotator "RC"]
[PlyCount "80"]
[EventDate "2022.03.31"]
[EventType "swiss"]
[EventCountry "IND"]
[SourceTitle "playchess.com"]
[Source "ChessBase"]
[SourceQuality "1"]
[TimeControl "5400+30"]

1. e4 {[%emt 0:00:03]} c5 {[%emt 0:11:21]} 2. Nf3 {[%emt 0:00:06]} Nc6 {[%emt 0:00:04]} 3. Bb5 {[%emt 0:00:04]} e5 {[%emt 0:00:05]} 4. O-O {[%emt 0:01:05]} Bd6 {[%emt 0:00:07]} 5. c3 {[%emt 0:00:48]} a6 {[%emt 0:00:26]} 6. Ba4 {[%emt 0:02:44]} b5 {[%emt 0:00:13]} 7. Bc2 {[%emt 0:00:07]} Nge7 {[%emt 0:00:11]} 8. h3 {[%emt 0:05:45]} O-O {[%emt 0:04:16]} 9. d4 {[%emt 0:03:29]} cxd4 {[%emt 0:00:10]} 10. cxd4 {[%emt 0:00:07]} exd4 {[%emt 0:02:32]} 11. Nxd4 {[%emt 0:00:48]} Nxd4 {[%emt 0:00:44]} 12. Qxd4 {[%emt 0:00:03]} Qc7 {[%emt 0:01:23]} 13. Qd1 {[%emt 0:02:48]} Bb7 {[%emt 0:00:44]} 14. Nc3 {[%emt 0:00:31]} Rac8 {[%emt 0:02:55]} 15. a3 {[%emt 0:05:44]} Bh2+ {[%emt 0:08:14]} 16. Kh1 {[%emt 0:00:02]} Be5 {[%emt 0:00:08]} 17. Bd2 {[%emt 0:06:26]} d5 {[%emt 0:01:57]} 18. Rc1 {[%emt 0:08:17]} Bxc3 {[%emt 0:04:46]} 19. Bxc3 {[%emt 0:00:41]} dxe4 {[%emt 0:00:20]} 20. Qg4 {[%emt 0:05:07]} Ng6 {[%emt 0:12:56]} 21. Bxe4 {[%emt 0:04:28]} f5 {[%emt 0:05:34]} 22. Bxf5 {[%emt 0:00:10]} Bxg2+ {[%emt 0:01:21]} 23. Kg1 {[%emt 0:03:44]} Bxf1 {[%emt 0:03:02]} 24. Bxc8 {[%emt 0:06:19]} Rxc8 {[%emt 0:12:32]} 25. Qe6+ {[%emt 0:00:22]} Kh8 {[%emt 0:00:02]} 26. Bxg7+ {[%emt 0:03:49]} Kxg7 {[%emt 0:00:01]} 27. Rxc7+ {[%emt 0:00:36]} Rxc7 {[%emt 0:00:01]} 28. Qd6 {[%emt 0:00:01]} Rc1 {[%emt 0:01:42]} 29. Qd7+ {[%emt 0:00:31]} Kf8 {[%emt 0:02:22]} 30. Qd8+ {[%emt 0:02:28]} Kf7 {[%emt 0:00:01]} 31. Qd5+ {[%emt 0:00:21]} Kf6 {[%emt 0:03:22]} 32. Qd4+ {[%emt 0:01:49]} Kf5 {[%emt 0:01:21]} 33. Qg4+ {[%emt 0:00:20]} Kf6 {[%emt 0:00:07]} 34. Qd4+ {[%emt 0:00:16]} Kf7 {[%emt 0:01:16]} 35. Qd5+ {[%emt 0:00:26]} Ke8 {[%emt 0:04:42]} 36. Qe4+ {[%emt 0:03:16]} Kf8 {[%emt 0:00:51]} 37. Qa8+ {[%emt 0:03:07]} Kg7 {[%emt 0:03:26]} 38. Qa7+ {[%emt 0:00:12]} Kg8 {[%emt 0:00:35]} 39. Qa8+ {[%emt 0:00:16]} Kg7 {[%emt 0:02:45]} 40. Qa7+ {[%emt 0:00:07]} Kf6 {[%emt 0:02:25]} 1/2-1/2

[Event "3rd Gujarat GM Open 2022"]
[Site "Ahmedabad"]
[Date "2022.04.04"]
[Round "7.18"]
[White "Shahil Dey"]
[Black "Ratnakaran, K.."]
[Result "1/2-1/2"]
[ECO "C05"]
[WhiteElo "2400"]
[BlackElo "2316"]
[Annotator "RC"]
[PlyCount "109"]
[EventDate "2022.03.31"]
[EventType "swiss"]
[EventCountry "IND"]
[SourceTitle "playchess.com"]
[Source "ChessBase"]
[SourceQuality "1"]
[TimeControl "5400+30"]

1. e4 {[%emt 0:00:02]} e6 {[%emt 0:01:38]} 2. d4 {[%emt 0:00:07]} d5 {[%emt 0:00:04]} 3. Nd2 {[%emt 0:00:06]} Nf6 {[%emt 0:00:04]} 4. e5 {[%emt 0:00:07]} Nfd7 {[%emt 0:00:03]} 5. f4 {[%emt 0:00:08]} c5 {[%emt 0:00:04]} 6. c3 {[%emt 0:00:06]} Nc6 {[%emt 0:00:22]} 7. Ndf3 {[%emt 0:00:06]} Qb6 {[%emt 0:01:38]} 8. a3 {[%emt 0:00:08]} c4 {[%emt 0:00:48]} 9. Ne2 {[%emt 0:01:54]} Be7 {[%emt 0:00:14]} 10. h4 {[%emt 0:05:25]} f6 {[%emt 0:00:29]} 11. g4 {[%emt 0:01:18]} fxe5 {[%emt 0:02:11]} 12. fxe5 {[%emt 0:00:17]} O-O {[%emt 0:05:09]} 13. Nf4 {[%emt 0:07:44]} Ndxe5 {[%emt 0:01:34]} 14. Nxe5 {[%emt 0:03:52]} Nxe5 {[%emt 0:01:00]} 15. dxe5 {[%emt 0:00:07]} Bc5 {[%emt 0:00:10]} 16. Qe2 {[%emt 0:16:10]} d4 {[%emt 0:02:12]} 17. Rh2 {[%emt 0:22:50]} Bd7 {[%emt 0:02:26]} 18. Qxc4 {[%emt 0:02:53]} dxc3 {[%emt 0:00:10]} 19. Bd3 {[%emt 0:00:34]} Bd4 {[%emt 0:02:39]} 20. Rb1 {[%emt 0:11:36]} cxb2 {[%emt 0:05:56]} 21. Bd2 {[%emt 0:00:07]} Rxf4 {[%emt 0:20:20]} 22. Bxf4 {[%emt 0:00:46]} Rc8 {[%emt 0:00:10]} 23. Qa2 {[%emt 0:02:32]} Bxe5 {[%emt 0:01:26]} 24. Rf2 {[%emt 0:06:02]} Bxf4 {[%emt 0:04:41]} 25. Qxb2 {[%emt 0:00:06]} Bg3 {[%emt 0:00:42]} 26. Qxb6 {[%emt 0:00:07]} axb6 {[%emt 0:00:08]} 27. Ke2 {[%emt 0:00:44]} Bxf2 {[%emt 0:00:11]} 28. Kxf2 {[%emt 0:00:02]} Rc3 {[%emt 0:00:31]} 29. Be4 {[%emt 0:00:08]} b5 {[%emt 0:01:23]} 30. Bxb7 {[%emt 0:01:14]} Kf7 {[%emt 0:00:50]} 31. Be4 {[%emt 0:00:44]} h6 {[%emt 0:00:47]} 32. Rd1 {[%emt 0:02:39]} Ke7 {[%emt 0:00:17]} 33. Rd3 {[%emt 0:00:33]} Rxd3 {[%emt 0:00:05]} 34. Bxd3 {[%emt 0:00:05]} g5 {[%emt 0:00:03]} 35. hxg5 {[%emt 0:00:09]} hxg5 {[%emt 0:00:02]} 36. Ke3 {[%emt 0:00:17]} Kd6 {[%emt 0:00:07]} 37. Be2 {[%emt 0:02:16]} Kc5 {[%emt 0:00:21]} 38. Ke4 {[%emt 0:00:12]} Kd6 {[%emt 0:00:23]} 39. Ke3 {[%emt 0:00:18]} Be8 {[%emt 0:01:28]} 40. Bf1 {[%emt 0:00:49]} Bc6 {[%emt 0:00:43]} 41. Bd3 {[%emt 0:00:45]} Kc5 {[%emt 0:00:13]} 42. Bf1 {[%emt 0:01:13]} Bd5 {[%emt 0:01:54]} 43. Be2 {[%emt 0:00:09]} e5 {[%emt 0:10:30]} 44. Bd1 {[%emt 0:00:41]} Kb6 {[%emt 0:01:00]} 45. Bc2 {[%emt 0:00:17]} Ka5 {[%emt 0:00:08]} 46. Bd1 {[%emt 0:15:05]} Bh1 {[%emt 0:02:58]} 47. Bc2 {[%emt 0:00:00]} Bg2 {[%emt 0:01:07]} 48. Kf2 {[%emt 0:00:00]} Bc6 {[%emt 0:01:09]} 49. Ke3 {[%emt 0:00:00]} Be8 {[%emt 0:02:32]} 50. Kf3 {[%emt 0:00:00]} Bd7 {[%emt 0:04:26]} 51. Bd1 {[%emt 0:00:00]} Bc6+ {[%emt 0:00:40]} 52. Ke3 {[%emt 0:00:00]} Bh1 {[%emt 0:01:10]} 53. Bc2 {[%emt 0:00:00]} e4 {[%emt 0:00:29]} 54. Bb3 {[%emt 0:00:00]} Bf3 {[%emt 0:00:13]} 55. Be6 {[%emt 0:00:00]} 1/2-1/2

[Event "3rd Gujarat GM Open 2022"]
[Site "Ahmedabad"]
[Date "2022.04.06"]
[Round "9.1"]
[White "Srihari L R"]
[Black "Neelotpal, Das"]
[Result "1/2-1/2"]
[ECO "D79"]
[WhiteElo "2400"]
[BlackElo "2409"]
[Annotator "TA"]
[PlyCount "61"]
[EventDate "2022.03.31"]
[EventType "swiss"]
[EventCountry "IND"]
[SourceTitle "playchess.com"]
[Source "ChessBase"]
[SourceQuality "1"]
[TimeControl "5400+30"]

{[%evp 17,61,0,0,0,18,17,17,26,18,14,21,0,11,9,11,11,10,3,5,8,5,8,6,0,0,0,0,0,0,0,0,0,0,0,0,0,0,0,0,0,0,0,0,0,0,0]} 1. d4 {[%emt 0:00:10]} d5 {[%emt 0:00:46]} 2. c4 {[%emt 0:00:17]} c6 {[%emt 0:00:19]} 3. Nf3 {[%emt 0:00:09]} Nf6 {[%emt 0:00:04]} 4. g3 {[%emt 0:00:15]} g6 {[%emt 0:00:27]} 5. Bg2 {[%emt 0:00:16]} Bg7 {[%emt 0:00:04]} 6. O-O {[%emt 0:00:22]} O-O {[%emt 0:00:03]} 7. Ne5 {[%emt 0:00:41]} Ng4 {[%emt 0:04:39]} 8. cxd5 {[%emt 0:00:45]} cxd5 {[%emt 0:02:40]} 9. Bf4 {[%emt 0:02:58]} Nxe5 {[%emt 0:09:27]} 10. Bxe5 {[%emt 0:01:54]} Nc6 {[%emt 0:01:00]} (10... f6 $5 {[%cal Rf6e5]} 11. Bf4 Nc6 $11) 11. Bxg7 {[%emt 0:00:40]} Kxg7 {[%emt 0:00:03]} 12. Nc3 {[%emt 0:00:55]} e6 {[%emt 0:00:13]} 13. e3 {[%emt 0:06:29]} b6 {[%emt 0:03:51]} 14. Qe2 {[%emt 0:10:46]} Bb7 {[%emt 0:01:28]} 15. Rfd1 {[%emt 0:01:24]} Ne7 {[%emt 0:00:31]} 16. Rac1 {[%emt 0:03:33]} Rc8 {[%emt 0:03:20]} 17. b3 {[%emt 0:01:18]} Qd7 {[%emt 0:08:57]} 18. Qb2 {[%emt 0:00:35]} Rc7 {[%emt 0:08:11]} 19. Bf1 {[%emt 0:04:25]} Rfc8 {[%emt 0:01:59]} 20. Nb5 {[%emt 0:00:26]} Rxc1 {[%emt 0:00:13]} 21. Rxc1 {[%emt 0:00:05]} Ba6 {[%emt 0:08:40]} 22. Rxc8 {[%emt 0:04:49]} Nxc8 {[%emt 0:00:50]} 23. Qc1 {[%emt 0:00:47]} Bxb5 {[%emt 0:03:41]} 24. Bxb5 {[%emt 0:00:07]} Qxb5 {[%emt 0:00:28]} 25. Qxc8 {[%emt 0:00:07]} Qe2 {[%emt 0:00:09]} 26. Qc7 {[%emt 0:00:07]} Qxa2 {[%emt 0:00:14]} 27. Qe5+ {[%emt 0:00:05]} Kg8 {[%emt 0:00:09]} 28. Qb8+ {[%emt 0:00:08]} Kg7 {[%emt 0:00:03]} 29. Qe5+ {[%emt 0:00:05]} Kg8 {[%emt 0:00:09]} 30. Qb8+ {[%emt 0:00:05]} Kg7 {[%emt 0:00:04]} 31. Qe5+ {[%emt 0:00:05]} 1/2-1/2